bitfinex-derivatives/quotes_ETHF0:USTF0_20241230
["timestamp","ask_amount","ask_price","bid_price","bid_amount"]
[1735594320580,3.8356,3370.4,3369.4,0.74304]
[1735594320773,0.29713,3370.3,3370.0,0.29716]
[1735594321079,0.29715,3370.1,3370.0,0.29716]
[1735594321274,0.29715,3370.2,3370.1,0.29715]
[1735594322182,3.2078,3370.4,3370.3,0.29713]
[1735594322871,6.08025835,3370.9,3370.0,44.0078]
[1735594323072,3.2078,3371.4,3370.4,3.2078]
[1735594323480,2.87245835,3371.3,3370.4,3.2078]
[1735594323783,0.29709,3370.9,3370.8,0.29709]
[1735594323975,2.87245835,3371.3,3371.1,0.29706]
[1735594323976,0.29705,3371.3,3371.1,0.29706]
[1735594324478,0.29706,3371.2,3371.1,0.29706]
[1735594324680,0.29705,3371.3,3370.6,1.9368]
[1735594324879,0.29705,3371.3,3371.2,0.29706]
[1735594325177,0.29706,3371.2,3370.4,0.604]
[1735594325475,2.87245835,3371.3,3369.7,3.52835835]
[1735594325476,0.29714,3370.3,3369.9,0.29717]
[1735594325780,0.29713,3370.4,3369.9,0.29717]
[1735594325968,3.2078,3370.5,3369.8,0.6348]
[1735594326177,3.2078,3370.5,3370.4,0.29713]
[1735594326580,3.2078,3370.5,3369.8,0.6348]
[1735594326777,3.2078,3370.1,3369.7,0.29718]
[1735594326982,0.29718,3369.8,3369.5,0.604]
[1735594327277,0.29718,3369.8,3369.4,3.2078]
[1735594327278,3.2078,3370.1,3369.6,0.2972]
[1735594327478,3.2078,3370.1,3369.4,3.2078]
[1735594327479,3.2078,3370.1,3370.0,0.29716]
[1735594327671,3.2078,3370.1,3369.4,3.95084]
[1735594327875,3.2078,3370.1,3370.0,0.29716]
[1735594328677,3.2078,3370.1,3369.9,0.29717]
[1735594328678,3.50495,3370.1,3369.9,0.29717]
[1735594328878,3.50495,3370.1,3370.0,0.29716]
[1735594328879,3.2078,3370.1,3370.0,0.29716]
[1735594329379,3.2078,3370.2,3370.1,0.29714]
[1735594330679,0.29717,3370.0,3369.7,0.29718]
[1735594330881,3.2078,3370.2,3369.4,4.5098]
[1735594331076,0.29715,3370.1,3369.6,0.2972]
[1735594331381,0.29718,3369.8,3369.6,0.2972]
[1735594331583,3.2078,3369.8,3369.1,1.9211]
[1735594331883,0.2972,3369.6,3369.3,0.29722]
[1735594332270,0.29721,3369.5,3369.3,0.29722]
[1735594332475,3.2078,3369.8,3369.4,0.29721]
[1735594332476,0.29719,3369.7,3369.4,0.29721]
[1735594332873,3.2078,3369.8,3369.3,0.29722]
[1735594333069,3.2078,3369.4,3368.7,0.6195]
[1735594333380,3.2078,3368.9,3368.1,1.302]
[1735594333582,0.2973,3368.5,3368.2,0.29731]
[1735594333784,0.2973,3368.5,3368.2,0.29732]
[1735594334076,0.2973,3368.5,3368.1,1.302]
[1735594334077,0.29729,3368.6,3368.3,0.29731]
[1735594334278,0.29729,3368.6,3368.4,0.2973]
[1735594334474,0.29728,3368.7,3368.2,0.29732]
[1735594334682,0.29729,3368.6,3368.3,0.2973]
[1735594334882,0.29728,3368.7,3368.4,0.29729]
[1735594335083,0.29728,3368.7,3368.2,0.29732]
[1735594335282,0.29728,3368.7,3368.4,0.2973]
[1735594335484,0.29729,3368.6,3368.3,0.29731]
[1735594335888,0.29729,3368.6,3368.1,1.302]
[1735594336185,3.2078,3368.9,3368.1,1.302]
[1735594336483,0.29728,3368.7,3368.4,0.29729]
[1735594336878,3.2078,3368.9,3368.1,1.302]
[1735594337085,1.46759,3369.7,3368.3,3.2078]
[1735594337086,3.2078,3369.5,3368.3,3.2078]
[1735594337281,3.2078,3369.0,3368.3,3.2078]
[1735594337474,0.29725,3369.1,3368.8,0.29726]
[1735594337883,3.2078,3369.4,3368.3,0.74327]
[1735594338090,3.50502,3369.4,3368.3,5.74327]
[1735594338282,3.2078,3369.4,3368.8,0.29726]
[1735594338476,3.2078,3369.4,3368.3,5.74327]
[1735594338674,0.29724,3369.1,3368.3,5.74327]
[1735594338880,3.50502,3369.4,3369.0,0.29725]
[1735594339081,0.29723,3369.3,3369.1,40.8]
[1735594339280,3.50502,3369.4,3369.1,40.8]
[1735594339485,3.2078,3369.4,3369.1,40.8]
[1735594339683,0.74309,3369.2,3367.8,7.427]
[1735594339883,3.2078,3368.8,3368.3,0.29731]
[1735594340178,3.2078,3368.8,3368.0,2.537]
[1735594340483,0.29733,3368.1,3368.0,1.235]
[1735594340677,3.95107,3368.4,3367.6,42.102]
[1735594340882,0.7433,3368.3,3367.6,42.102]
[1735594341090,3.95107,3368.4,3367.6,42.102]
[1735594341091,3.2078,3368.4,3367.6,42.102]
[1735594341286,0.29735,3368.0,3367.7,0.29736]
[1735594341592,0.29735,3367.9,3367.7,0.29736]
[1735594342387,3.2078,3368.4,3367.8,0.29735]
[1735594342582,0.29731,3368.3,3367.8,0.29735]
[1735594342789,3.2078,3368.4,3367.9,0.29734]
[1735594343178,3.2078,3368.4,3367.7,1.302]
[1735594343589,3.50511,3368.4,3368.2,0.29732]
[1735594343996,3.50511,3368.4,3368.1,0.29732]
[1735594344286,0.29731,3368.4,3368.2,0.29731]
[1735594344692,3.2078,3368.8,3368.2,0.29731]
[1735594344883,3.2078,3368.8,3368.0,1.302]
[1735594345084,3.50503,3369.2,3368.3,3.2078]
[1735594345285,3.50503,3369.2,3369.0,0.29725]
[1735594345486,3.2078,3369.2,3368.5,0.74324]
[1735594345784,0.29725,3369.1,3368.8,0.29726]
[1735594345993,3.2078,3369.2,3368.5,0.74324]
[1735594346177,0.29724,3369.1,3368.5,0.74324]
[1735594346378,0.29725,3369.1,3368.8,0.29726]
[1735594346578,3.2078,3369.2,3368.6,40.8]
[1735594346984,3.2078,3369.2,3369.1,0.29724]
[1735594347185,3.2078,3369.2,3368.7,0.6174]
[1735594347484,3.2078,3369.2,3368.5,0.29729]
[1735594347691,3.2078,3369.2,3368.3,4.5098]
[1735594347890,0.29725,3369.0,3368.8,0.29726]
[1735594348685,0.29724,3369.1,3368.9,0.29725]
[1735594349188,3.50503,3369.2,3369.0,0.29724]
[1735594349386,3.2078,3369.2,3368.4,0.74326]
[1735594349609,0.29726,3368.9,3368.7,0.29727]
[1735594349780,3.2078,3369.2,3368.8,0.29727]
[1735594349982,3.2078,3369.2,3368.4,42.091]
[1735594350184,3.2078,3369.2,3368.4,1.291]
[1735594350480,0.29727,3368.8,3368.6,0.29728]
[1735594351089,0.29726,3369.0,3368.8,0.29726]
[1735594351292,0.29726,3369.0,3368.4,1.291]
[1735594351491,0.29726,3369.0,3368.8,0.29726]
[1735594351700,0.29726,3369.0,3368.4,1.291]
[1735594351996,0.29725,3369.1,3368.9,0.29725]
[1735594352488,3.2078,3369.2,3368.8,0.29726]
[1735594352489,0.29726,3368.9,3368.8,0.29726]
[1735594353395,0.29726,3368.9,3368.6,0.29728]
[1735594353594,0.29726,3368.9,3368.8,0.29727]
[1735594354192,0.29725,3369.1,3369.0,0.29724]
[1735594354690,3.2078,3369.2,3369.1,0.29724]
[1735594358994,2.27668208,3369.7,3369.6,0.2972]
[1735594359902,0.29716,3370.0,3369.7,0.29718]
[1735594360098,3.2078,3370.1,3370.0,0.29716]
[1735594360294,3.2078,3370.1,3369.5,0.74302]
[1735594360295,3.2078,3370.5,3370.4,0.29713]
[1735594360499,0.2971,3370.7,3370.5,0.29711]
[1735594360698,0.2971,3370.7,3370.6,0.29711]
[1735594361100,0.2971,3370.8,3370.7,0.29709]
[1735594361294,6.08871534,3371.0,3369.5,3.2078]
[1735594361491,3.2078,3370.2,3369.8,0.6108]
[1735594361692,0.29717,3369.9,3369.8,0.90798]
[1735594362096,3.2078,3370.2,3369.8,0.6108]
[1735594362297,3.2078,3370.2,3370.1,0.29715]
[1735594363503,2.27916289,3370.6,3370.5,0.29712]
[1735594364599,6.62654434,3370.7,3370.3,40.8]
[1735594364600,3.2078,3370.7,3370.6,0.29711]
[1735594365702,2.27916289,3371.0,3370.9,0.29708]
[1735594366002,3.50487,3371.1,3371.0,0.29707]
[1735594366403,3.2078,3371.1,3371.0,0.29707]
[1735594366603,0.29711,3370.7,3370.6,0.2971]
[1735594366802,0.29711,3370.7,3370.3,44.0078]
[1735594366803,0.2971,3370.8,3370.7,0.29709]
[1735594367595,0.29709,3370.9,3370.8,0.29709]
[1735594367800,3.2078,3371.1,3370.2,1.291]
[1735594368100,0.29708,3371.0,3370.9,0.29707]
[1735594368296,3.2078,3371.1,3371.0,0.29707]
[1735594368502,0.29711,3370.7,3370.6,0.2971]
[1735594368803,0.29709,3370.9,3370.8,0.29709]
[1735594371513,3.2078,3371.1,3370.3,0.74284]
[1735594371714,0.29709,3370.9,3370.8,0.29708]
[1735594372107,3.2078,3371.1,3370.3,0.74284]
[1735594372307,3.50487,3371.1,3371.0,0.29707]
[1735594372709,3.2078,3371.1,3371.0,0.29707]
[1735594374733,0.29704,3371.4,3370.7,3.8607]
[1735594374914,5.4846719,3371.5,3371.3,0.29704]
[1735594375311,5.4846719,3371.5,3371.4,0.29704]
[1735594375613,3.2078,3371.5,3371.4,0.29704]
[1735594376415,2.2768719,3371.9,3371.8,0.297]
[1735594376416,5.4846719,3371.9,3371.8,0.297]
[1735594377317,3.2078,3371.9,3371.8,1.587]
[1735594377919,2.2768719,3372.4,3372.0,0.74246]
[1735594378116,2.2768719,3372.4,3372.3,0.29696]
[1735594378921,0.29695,3372.5,3372.1,0.6223]
[1735594379118,3.2078,3372.8,3372.1,0.6223]
[1735594379423,0.29697,3372.2,3372.1,0.6223]
[1735594379622,0.29701,3371.7,3371.6,0.6173]
[1735594379921,0.29702,3371.6,3371.5,1.272]
[1735594380114,3.2078,3371.8,3371.4,0.29703]
[1735594380318,0.29703,3371.5,3371.3,0.29704]
[1735594380526,3.50481,3371.8,3371.6,0.29702]
[1735594380823,0.29702,3371.6,3371.2,1.272]
[1735594381024,3.2078,3371.8,3371.2,1.272]
[1735594381220,3.2078,3372.3,3372.2,0.29697]
[1735594381526,2.2768719,3372.6,3372.5,0.29694]
[1735594383019,6.94757975,3373.2,3372.4,0.74236]
[1735594383020,3.2078,3373.1,3372.4,0.74236]
[1735594383322,3.50469,3373.1,3373.0,0.2969]
[1735594383717,3.2078,3373.1,3373.0,0.2969]
[1735594384427,0.29686,3373.5,3373.4,0.29685]
[1735594385424,3.2078,3373.6,3373.5,0.29685]
[1735594387020,0.6523,3374.3,3373.5,0.29685]
[1735594387021,4.15689,3374.3,3374.2,0.29679]
[1735594387222,3.8601,3374.3,3374.2,0.29679]
[1735594387430,4.15688,3374.3,3374.2,0.29679]
[1735594387728,3.8601,3374.3,3374.2,0.29679]
[1735594387928,0.2968,3374.2,3374.1,0.2968]
[1735594388228,0.29681,3374.0,3373.9,0.29681]
[1735594388428,0.29682,3373.9,3373.8,1.272]
[1735594389023,0.29682,3373.9,3373.1,2.06632]
[1735594389024,3.2078,3373.9,3373.1,1.3241]
[1735594389318,0.74197,3374.3,3373.3,0.29687]
[1735594389319,0.29686,3373.4,3373.3,0.29687]
[1735594389525,3.50465,3373.6,3373.5,0.29685]
[1735594389723,3.2078,3373.6,3373.1,0.6651]
[1735594389920,0.29683,3373.8,3373.1,1.40733]
[1735594390133,0.29683,3373.8,3373.6,0.29684]
[1735594390727,0.29688,3373.3,3373.1,0.96199]
[1735594390923,0.29688,3373.2,3373.0,0.29689]
[1735594391129,3.2078,3373.1,3373.0,1.272]
[1735594391330,0.29688,3373.2,3373.0,1.56889]
[1735594391931,0.29689,3373.1,3373.0,1.272]
[1735594392127,0.29692,3372.7,3372.4,7.421]
[1735594392327,3.2078,3372.9,3372.0,0.6272]
[1735594392623,3.2078,3372.9,3372.1,1.272]
[1735594392624,0.74229,3372.8,3372.1,1.272]
[1735594392924,3.2078,3372.9,3372.1,1.272]
[1735594393132,0.29691,3372.8,3372.3,0.29695]
[1735594393334,0.29694,3372.6,3372.4,0.29695]
[1735594393726,0.29695,3372.5,3372.3,0.29695]
[1735594393924,0.29695,3372.5,3372.1,1.272]
[1735594394124,0.29694,3372.6,3372.4,0.29695]
[1735594394330,0.29694,3372.6,3372.1,1.272]
[1735594394331,0.6179,3372.8,3372.1,1.272]
[1735594394530,0.29694,3372.5,3372.4,0.29695]
[1735594394734,3.2078,3372.9,3372.1,1.272]
[1735594395128,3.2078,3372.9,3372.8,0.29691]
[1735594395329,3.2078,3373.3,3373.2,0.29688]
[1735594395531,3.2078,3373.3,3373.0,1.272]
[1735594395730,3.2078,3373.3,3372.5,1.272]
[1735594396031,0.29692,3372.8,3372.6,41.09693]
[1735594396326,0.29692,3372.7,3372.6,40.8]
[1735594396528,2.88091534,3372.8,3371.6,3.2078]
[1735594396729,3.2078,3371.9,3371.2,3.8651]
[1735594396934,3.2078,3371.9,3371.3,42.072]
[1735594397127,0.29703,3371.5,3371.3,42.36904]
[1735594397323,3.2078,3371.4,3370.6,1.272]
[1735594397527,5.0,3371.9,3370.6,1.272]
[1735594397528,0.29709,3370.8,3370.6,1.272]
[1735594397733,3.2078,3371.0,3370.7,40.8]
[1735594398129,3.50488,3371.0,3370.7,41.0971]
[1735594398531,3.2078,3371.0,3370.3,1.2784]
[1735594398734,0.29711,3370.6,3370.3,0.29713]
[1735594399133,3.2078,3371.0,3370.3,40.8]
[1735594399338,3.8758,3371.4,3370.3,40.8]
[1735594399640,3.2078,3370.9,3370.6,0.29711]
[1735594399845,3.2078,3370.9,3370.7,0.29709]
[1735594400144,3.2078,3370.9,3370.3,42.072]
[1735594400145,3.2078,3370.9,3370.8,0.29709]
[1735594400339,3.2078,3370.9,3370.3,42.072]
[1735594400340,3.2078,3370.9,3370.7,0.29709]
[1735594400535,3.50489,3370.9,3370.6,0.2971]
[1735594400843,3.2078,3371.3,3370.6,2.88091534]
[1735594401140,3.2078,3371.3,3371.2,0.29706]
[1735594402236,3.2078,3371.3,3371.2,41.09706]
[1735594402635,3.2078,3371.8,3371.2,40.8]
[1735594402835,3.5048,3371.8,3371.5,0.29702]
[1735594403037,3.5048,3371.8,3371.6,0.29702]
[1735594403535,3.5048,3371.8,3371.7,0.29701]
[1735594404141,3.5048,3371.8,3371.2,40.8]
[1735594404142,3.5048,3371.8,3371.6,0.29702]
[1735594404333,3.5048,3371.8,3371.2,40.8]
[1735594404743,3.5048,3371.8,3371.6,0.29702]
[1735594405745,3.2078,3371.8,3371.6,0.29702]
[1735594406036,3.2078,3371.8,3371.7,0.29701]
[1735594406544,3.5048,3371.8,3371.7,0.29701]
[1735594407138,3.5048,3371.8,3371.4,0.29704]
[1735594407139,0.29703,3371.5,3371.4,0.29704]
[1735594407347,0.29703,3371.5,3371.2,44.0078]
[1735594407348,3.2078,3371.8,3371.2,3.2078]
[1735594407639,0.29702,3371.7,3371.6,0.29702]
[1735594408231,0.29702,3371.6,3371.4,0.29703]
[1735594408439,0.29702,3371.6,3371.2,3.2078]
[1735594408440,3.2078,3371.8,3371.2,3.2078]
[1735594408635,0.29701,3371.7,3371.6,0.29702]
[1735594408840,0.29702,3371.7,3371.5,0.29702]
[1735594409036,0.29702,3371.6,3371.5,0.29702]
[1735594409438,0.29702,3371.6,3371.0,42.072]
[1735594409439,3.2078,3371.8,3371.7,0.29701]
[1735594412932,3.2078,3372.4,3372.3,0.29696]
[1735594415236,3.50475,3372.4,3372.3,0.29696]
[1735594415544,3.50475,3372.4,3371.5,0.74257]
[1735594415545,8.2078,3372.4,3371.4,1.241]
[1735594415838,3.5048,3371.9,3371.8,0.297]
[1735594416047,3.2078,3371.9,3371.8,0.297]
[1735594416437,0.29699,3372.0,3371.9,0.29698]
[1735594416743,3.2078,3372.3,3371.8,0.297]
[1735594416744,0.29701,3371.9,3371.8,0.297]
[1735594416942,3.2078,3371.9,3371.4,1.241]
[1735594417335,3.2078,3371.9,3371.4,0.6256]
[1735594417336,0.29703,3371.5,3371.4,0.6256]
[1735594417738,3.2078,3371.9,3371.4,0.6256]
[1735594418044,0.29701,3371.8,3371.7,0.297]
[1735594420256,2.5738519,3372.1,3372.0,0.29699]
[1735594420446,2.2768719,3372.1,3372.0,0.29699]
[1735594420748,2.5738519,3372.1,3372.0,0.29699]
[1735594420936,2.5738519,3372.1,3371.8,0.29699]
[1735594420937,0.297,3371.9,3371.8,0.29699]
[1735594421137,3.5048,3371.9,3371.8,0.29699]
[1735594421436,0.29701,3371.8,3371.7,0.29701]
[1735594421945,3.5048,3371.9,3371.8,0.297]
[1735594422146,0.29702,3371.7,3371.6,0.29701]
[1735594422741,3.2078,3371.9,3371.6,0.29701]
[1735594422940,3.2078,3371.9,3371.4,0.6256]
[1735594423243,2.2768719,3372.2,3371.4,0.92264]
[1735594423244,3.50483,3371.5,3371.4,0.92264]
[1735594423445,3.2078,3371.5,3371.4,0.92264]
[1735594423742,0.29702,3371.6,3371.4,0.6256]
[1735594423949,0.29702,3371.6,3371.5,0.29703]
[1735594424547,6.08871534,3371.9,3370.8,3.2078]
[1735594424751,3.2078,3371.1,3370.5,1.3516]
[1735594424950,0.2971,3370.8,3370.7,0.29709]
[1735594425250,0.2971,3370.8,3370.7,41.09709]
[1735594425750,3.2078,3371.1,3371.0,0.29707]
[1735594426046,3.50486,3371.1,3371.0,0.29707]
[1735594426448,3.2078,3371.1,3371.0,0.29707]
[1735594429652,3.2078,3371.5,3371.0,3.17798534]
[1735594429852,2.5738719,3371.8,3371.7,0.29701]
[1735594430153,2.2768719,3371.8,3371.7,0.29701]
[1735594430754,3.2078,3371.9,3371.4,1.3711]
[1735594431049,3.2078,3371.9,3371.8,0.297]
[1735594431449,3.50479,3371.9,3371.8,0.297]
[1735594432448,3.2078,3371.9,3371.8,0.297]
[1735594432648,3.50479,3371.9,3371.8,0.297]
[1735594432846,3.2078,3371.9,3371.8,0.297]
[1735594433153,3.50479,3371.9,3371.8,0.297]
[1735594433448,3.50479,3371.9,3371.4,1.3711]
[1735594433449,3.2078,3371.9,3371.4,1.3711]
[1735594433655,0.29703,3371.6,3371.5,0.29703]
[1735594433952,3.5048,3371.9,3371.8,0.297]
[1735594434147,3.2078,3371.9,3371.8,0.297]
[1735594435454,2.2768719,3372.1,3372.0,0.29699]
[1735594436146,9.19690975,3372.7,3372.0,0.29699]
[1735594436147,2.2768719,3372.4,3372.0,0.29699]
[1735594436346,2.2768719,3372.4,3372.3,0.29696]
[1735594436750,2.2768719,3372.4,3372.3,41.09696]
[1735594437647,2.2768719,3372.4,3372.2,3.56621534]
[1735594437648,5.4846719,3372.4,3372.2,0.98226]
[1735594437853,5.7816219,3372.4,3372.2,0.6853]
[1735594438054,3.2078,3372.4,3372.2,0.98226]
[1735594438248,3.50475,3372.4,3372.2,0.6853]
[1735594438446,3.2078,3372.4,3372.2,0.6853]
[1735594438652,0.29696,3372.3,3372.2,0.98226]
[1735594439055,2.5738319,3372.3,3372.2,0.6853]
[1735594439256,2.2768719,3372.3,3372.2,0.6853]
[1735594439457,2.2768719,3372.3,3372.2,3.86318534]
[1735594440753,2.2768719,3372.7,3372.6,0.29693]
[1735594440953,2.2768719,3372.7,3372.1,3.853]
[1735594440954,0.29696,3372.3,3372.1,0.6452]
[1735594441153,0.29697,3372.2,3372.1,0.6452]
[1735594441349,3.2078,3372.4,3372.1,0.29698]
[1735594441547,0.29696,3372.3,3372.1,0.29698]
[1735594441753,3.6592719,3372.7,3372.3,0.29696]
[1735594441953,3.6592719,3372.7,3371.7,3.95033]
[1735594441954,3.2078,3372.5,3371.7,5.22433]
[1735594442155,0.29697,3372.2,3371.7,5.22433]
[1735594442357,2.2768719,3372.2,3372.1,0.29698]
[1735594442961,2.5738419,3372.2,3372.1,0.29698]
[1735594443156,2.2768719,3372.2,3372.1,0.29698]
[1735594443660,2.2768719,3372.2,3372.1,3.50478]
[1735594444356,3.41530785,3372.4,3372.1,49.0078]
[1735594444558,3.41530785,3372.4,3372.3,3.17787534]
[1735594444753,1.72024785,3372.4,3372.3,3.17787534]
[1735594444953,4.5537438,3372.6,3372.5,0.29694]
[1735594445155,4.5537438,3373.2,3373.1,0.29689]
[1735594446459,0.29687,3373.4,3373.2,0.29688]
[1735594446662,3.2078,3373.3,3372.4,3.2078]
[1735594446866,0.2969,3373.0,3372.8,0.29691]
[1735594447164,3.2078,3373.3,3372.5,0.74236]
[1735594447462,3.2078,3373.3,3373.2,0.29688]
[1735594447763,3.2078,3373.3,3373.2,0.29441939]
[1735594448765,0.6514,3373.5,3373.4,0.29686]
[1735594448959,5.69217975,3373.8,3373.1,0.74222]
[1735594448960,4.5537438,3373.8,3373.7,0.29684]
[1735594449667,4.5537438,3373.8,3373.7,41.75394]
[1735594449967,3.8349538,3373.8,3373.7,46.75394]
[1735594450166,3.4172438,3373.8,3373.7,46.75394]
[1735594450366,2.8991651,3393.4,3373.7,46.4571]
[1735594450367,9.81388761,3374.8,3373.7,46.4571]
[1735594450571,0.7064,3374.8,3374.6,0.29676]
[1735594450862,2.7832338,3375.0,3374.6,0.29676]
[1735594451865,0.94672,3375.1,3374.6,0.29676]
[1735594452365,0.94672,3375.1,3374.4,1.274]
[1735594452366,0.65,3375.1,3374.4,1.274]
[1735594452565,0.29676,3374.6,3374.4,1.274]
[1735594452762,0.7116,3374.6,3374.4,1.274]
[1735594453067,0.6997,3375.0,3374.6,0.29676]
[1735594453365,0.94671,3375.1,3374.4,1.274]
[1735594453366,0.65,3375.1,3374.4,1.274]
[1735594453666,0.29674,3374.9,3374.5,0.29677]
[1735594453972,0.29677,3374.5,3374.4,1.274]
[1735594454160,3.2078,3374.7,3374.1,0.2968]
[1735594454463,3.2078,3374.7,3371.0,1.24971834]
[1735594454464,3.2078,3374.3,3373.2,3.2078]
[1735594454665,1.3845,3374.2,3373.2,4.4818]
[1735594454866,1.3845,3374.2,3373.2,3.2078]
[1735594455064,0.29681,3374.1,3373.3,1.274]
[1735594455261,0.29681,3374.1,3373.9,0.29681]
[1735594455569,0.29681,3374.1,3373.3,1.274]
[1735594455570,0.29681,3374.0,3373.3,1.274]
[1735594455871,0.29681,3374.0,3373.9,0.29681]
[1735594456169,0.6976,3374.2,3374.1,0.2968]
[1735594456870,0.6976,3374.2,3374.1,41.0968]
[1735594459463,0.6976,3374.2,3374.1,0.2968]
[1735594460265,3.2078,3374.7,3374.6,0.29676]
[1735594460459,3.50455,3374.7,3374.5,0.29676]
[1735594461367,3.50455,3374.7,3374.0,0.74201]
[1735594461368,3.2078,3374.7,3374.2,0.74197]
[1735594461667,3.2078,3374.3,3373.6,0.74217]
[1735594461872,0.29682,3374.2,3374.0,0.29683]
[1735594462069,1.01402,3374.2,3374.0,0.29683]
[1735594463063,0.29688,3373.5,3372.8,2.88091534]
[1735594463262,3.2078,3373.1,3372.9,1.274]
[1735594463458,3.2078,3373.1,3372.9,40.8]
[1735594463664,3.2078,3373.1,3372.3,1.274]
[1735594463863,3.2078,3373.1,3372.2,3.2078]
[1735594463864,3.2078,3372.7,3372.2,0.29698]
[1735594464065,3.50478,3372.3,3372.2,1.274]
[1735594464262,3.2078,3372.3,3372.2,1.274]
[1735594464468,3.2078,3372.7,3372.2,1.274]
[1735594464668,0.29697,3372.4,3372.2,1.57099]
[1735594464867,0.29696,3372.6,3372.3,0.29698]
[1735594465062,3.2078,3372.7,3372.2,1.274]
[1735594465263,3.50475,3372.7,3372.5,0.29696]
[1735594465975,3.2078,3372.7,3372.6,0.29695]
[1735594466171,3.2078,3372.7,3372.2,1.274]
[1735594466172,0.6828,3373.0,3372.3,0.7119]
[1735594466376,3.50475,3372.7,3372.4,0.29697]
[1735594466670,3.2078,3372.7,3372.2,1.274]
[1735594466872,3.2078,3372.7,3372.6,0.29695]
[1735594468583,3.2078,3372.7,3372.5,0.29696]
[1735594468780,3.2078,3372.7,3372.2,1.274]
[1735594468972,3.2078,3372.7,3372.6,40.8]
[1735594469193,3.2078,3372.7,3372.6,41.09695]
[1735594474181,3.2078,3372.7,3372.6,40.8]
[1735594474182,3.50474,3372.7,3372.6,40.8]
[1735594474379,3.2078,3372.7,3372.6,41.09695]
[1735594477278,3.2078,3372.7,3372.4,1.297]
[1735594477476,3.2078,3372.7,3372.0,4.33753534]
[1735594477477,0.297,3372.1,3371.9,0.29702]
[1735594477676,3.95018,3372.7,3371.9,0.29702]
[1735594477677,3.2078,3372.3,3371.9,0.29702]
[1735594477978,3.2078,3372.3,3371.5,8.718]
[1735594478184,3.50482,3371.9,3371.6,0.29703]
[1735594478379,3.2078,3371.9,3371.6,40.8]
[1735594478683,0.29702,3371.8,3371.7,0.29703]
[1735594478872,3.2078,3371.9,3371.3,3.2078]
[1735594479080,3.2078,3371.9,3371.6,0.29704]
[1735594479278,0.97923,3371.8,3371.7,0.29703]
[1735594479479,0.6822,3371.8,3371.7,0.29703]
[1735594479880,0.6988,3372.2,3371.4,41.54264]
[1735594480087,0.29702,3371.9,3371.8,0.29702]
[1735594480284,3.50482,3371.9,3371.4,40.8]
[1735594480686,3.50482,3371.9,3371.8,0.29702]
[1735594481184,3.50482,3371.9,3371.4,40.8]
[1735594481185,0.29704,3371.7,3371.6,0.29704]
[1735594481790,3.2078,3371.9,3371.4,40.8]
[1735594481983,0.29704,3371.7,3371.6,0.29704]
[1735594482185,0.29704,3371.6,3371.4,40.8]
[1735594482482,0.29704,3371.6,3371.5,0.29705]
[1735594482787,3.2078,3371.9,3371.4,40.8]
[1735594483082,0.29702,3371.8,3371.5,0.29704]
[1735594483286,0.29705,3371.5,3371.4,41.09706]
[1735594483489,3.2078,3371.9,3371.4,40.8]
[1735594483680,0.29703,3371.8,3371.7,0.29703]
[1735594483880,0.29704,3371.7,3371.6,0.29704]
[1735594484281,3.2078,3371.9,3371.4,40.8]
[1735594484484,3.2078,3371.9,3371.8,0.29702]
[1735594484684,0.6822,3372.5,3371.6,2.88091534]
[1735594484986,3.2078,3372.7,3372.6,0.29695]
[1735594485194,3.50474,3372.7,3372.5,0.29696]
[1735594485389,3.50474,3372.7,3372.4,1.298]
[1735594485390,3.50474,3372.7,3372.6,40.8]
[1735594485590,0.29695,3372.6,3372.3,0.29698]
[1735594485789,3.95018,3372.7,3372.4,0.29697]
[1735594485790,0.29697,3372.5,3372.4,0.29697]
[1735594486093,3.2078,3372.7,3372.4,40.8]
[1735594486290,3.2078,3372.7,3372.6,0.29695]
[1735594486905,3.50474,3372.7,3372.6,0.29695]
[1735594487193,3.2078,3372.7,3372.6,0.29695]
[1735594487496,0.29696,3372.6,3372.2,0.29698]
[1735594487684,3.2078,3372.7,3372.1,0.29699]
[1735594487881,0.29697,3372.5,3372.2,0.29699]
[1735594488088,3.2078,3372.7,3372.2,0.29699]
[1735594488089,0.29697,3372.4,3372.3,40.8]
[1735594488495,0.29697,3372.4,3372.3,0.29698]
[1735594488989,3.2078,3372.7,3372.3,40.8]
[1735594489194,0.29696,3372.5,3372.4,0.29697]
[1735594489690,0.29699,3372.3,3372.2,0.29698]
[1735594489892,3.2078,3372.3,3371.9,1.9744]
[1735594490092,0.29699,3372.2,3371.9,1.9744]
[1735594490388,3.2078,3372.3,3371.9,1.298]
[1735594490692,0.29702,3371.9,3371.8,0.29702]
[1735594491287,3.2078,3371.9,3371.8,0.29702]
[1735594491590,3.2078,3371.9,3371.6,1.297]
[1735594491591,0.7001,3372.2,3371.6,1.297]
[1735594491894,0.29701,3372.0,3371.9,0.29701]
[1735594492291,0.7001,3372.2,3371.6,42.097]
[1735594492488,0.29702,3371.9,3371.8,0.29702]
[1735594492988,0.7001,3372.2,3371.6,42.8396]
[1735594493189,0.99709,3372.2,3372.1,0.297]
[1735594493387,0.7001,3372.2,3372.1,0.297]
[1735594493604,0.99709,3372.2,3372.1,0.297]
[1735594494186,0.29704,3371.6,3371.5,0.95105]
[1735594494381,0.29704,3371.6,3371.5,0.29705]
[1735594494790,0.29705,3371.5,3371.4,1.59405]